fUSD/lending_fUSD_20260511
["ID","MTS","AMOUNT","RATE_DAILY","PERIOD"]
[422015713,1778470240000,-151.0,0.00027397,2]
[422015707,1778470240000,-151.0,0.00027273,2]
[422015704,1778470240000,-151.0,0.00027273,2]
[422015693,1778470240000,-152.0,0.00026668,7]
[422015694,1778470240000,-279.07711973,0.00026668,7]
[422015683,1778470240000,-510.37761019,0.00026342,21]
[422015692,1778470240000,-152.0,0.00026668,7]
[422015677,1778470240000,-708.38395216,0.0002341,2]
[422015676,1778470240000,-943.44928503,0.0002341,2]
[422015678,1778470240000,-596.298,0.0002341,2]
[422015679,1778470240000,-4280.0144176,0.0002341,2]
[422015686,1778470240000,-151.24,0.00026414,2]
[422015685,1778470240000,-2006.9818163,0.0002639,5]
[422015691,1778470240000,-152.0,0.00026634,7]
[422015681,1778470240000,-1815.36,0.00026312,2]
[422015680,1778470240000,-548.965,0.00026312,2]
[422015687,1778470240000,-167.55,0.00026484,7]
[422015689,1778470240000,-156.4,0.00026575,7]
[422015684,1778470240000,-482.0,0.0002639,5]
[422015682,1778470240000,-152.0,0.00026335,30]
[422015688,1778470240000,-569.07194598,0.00026557,2]
[422015690,1778470240000,-152.0,0.00026634,7]
[422015711,1778470240000,-155.2127771,0.00027397,7]
[422015725,1778470240000,-151.0,0.00027397,2]
[422015708,1778470240000,-151.0,0.00027273,2]
[422015737,1778470240000,-151.0,0.00027397,2]
[422015733,1778470240000,-185.889757,0.00027397,2]
[422015735,1778470240000,-151.0,0.00027397,2]
[422015731,1778470240000,-185.889757,0.00027397,2]
[422015738,1778470240000,-151.0,0.00027397,2]
[422015742,1778470240000,-511.26367736,0.00027399,120]
[422015729,1778470240000,-185.889757,0.00027397,2]
[422015744,1778470240000,-210.000451,0.000274,7]
[422015745,1778470240000,-151.0,0.000274,7]
[422015747,1778470240000,-151.0,0.00027671,7]
[422015746,1778470240000,-152.0,0.00027629,4]
[422015749,1778470240000,-151.0,0.00027671,7]
[422015750,1778470240000,-500.0,0.000278,7]
[422015703,1778470240000,-966.5016809,0.00027273,2]
[422015743,1778470240000,-214.72600829,0.000274,10]
[422015740,1778470240000,-3511.55,0.00027397,10]
[422015748,1778470240000,-151.0,0.00027671,7]
[422015739,1778470240000,-296.902939,0.00027397,2]
[422015741,1778470240000,-2926.29,0.00027397,10]
[422015709,1778470240000,-151.0,0.00027273,2]
[422015705,1778470240000,-180.903837,0.00027273,2]
[422015717,1778470240000,-178.039379,0.00027397,2]
[422015727,1778470240000,-185.889757,0.00027397,2]
[422015723,1778470240000,-151.0,0.00027397,2]
[422015715,1778470240000,-178.039379,0.00027397,2]
[422015719,1778470240000,-178.039379,0.00027397,2]
[422015724,1778470240000,-151.0,0.00027397,2]
[422015718,1778470240000,-178.039379,0.00027397,2]
[422015720,1778470240000,-178.039379,0.00027397,2]
[422015716,1778470240000,-178.039379,0.00027397,2]
[422015714,1778470240000,-178.039379,0.00027397,2]
[422015721,1778470240000,-178.039379,0.00027397,2]
[422015722,1778470240000,-151.0,0.00027397,2]
[422015791,1778470241000,-587.0,0.00030504,30]
[422015789,1778470241000,-215.6556748,0.0003033,2]
[422015780,1778470241000,-175.05995027,0.0003,120]
[422015786,1778470241000,-204.8,0.00030239,2]
[422015781,1778470241000,-151.0,0.00030137,7]
[422015784,1778470241000,-569.07194598,0.00030146,2]
[422015783,1778470241000,-451.93301194,0.00030137,2]
[422015779,1778470241000,-500.0,0.0003,2]
[422015793,1778470241000,-153.0,0.00030504,30]
[422015782,1778470241000,-151.0,0.00030137,7]
[422015785,1778470241000,-153.0,0.00030167,2]
[422015792,1778470241000,-156.0,0.00030504,30]
[422015801,1778470241000,-500.0,0.00031256,60]
[422015795,1778470241000,-152.0,0.00030508,30]
[422015790,1778470241000,-172.4741376,0.0003033,2]
[422015797,1778470241000,-154.0,0.00030508,30]
[422015800,1778470241000,-381.217112,0.00031255,2]
[422015799,1778470241000,-2151.91130019,0.0003109,2]
[422015798,1778470241000,-504.0,0.00030863,8]
[422015803,1778470241000,-1000.0,0.00031256,60]
[422015811,1778470241000,-152.0,0.00031508,30]
[422015804,1778470241000,-156.78487912,0.000314,30]
[422015810,1778470241000,-154.0,0.00031504,30]
[422015808,1778470241000,-162.57263369,0.00031504,30]
[422015778,1778470241000,-152.0,0.00029769,5]
[422015794,1778470241000,-154.0,0.00030504,30]
[422015788,1778470241000,-10077.6787425,0.0003033,2]
[422015761,1778470241000,-480.24068132,0.00028954,30]
[422015775,1778470241000,-2361.0,0.00029445,2]
[422015751,1778470241000,-350.0,0.00027837,2]
[422015752,1778470241000,-2151.91130019,0.00028153,2]
[422015753,1778470241000,-264.33288905,0.00028213,2]
[422015754,1778470241000,-204.8,0.00028267,2]
[422015756,1778470241000,-504.0,0.00028277,6]
[422015755,1778470241000,-500.0,0.00028276,120]
[422015757,1778470241000,-379.63690223,0.00028711,30]
[422015759,1778470241000,-163.14222896,0.00028862,30]
[422015765,1778470241000,-151.0,0.00029312,7]
[422015763,1778470241000,-158.609318,0.00029312,7]
[422015760,1778470241000,-1105.50048072,0.00028865,3]
[422015807,1778470241000,-587.0,0.00031504,30]
[422015787,1778470241000,-502.0,0.00030329,2]
[422015758,1778470241000,-284.72767667,0.00028711,30]
[422015764,1778470241000,-205.822598,0.00029312,7]
[422015766,1778470241000,-151.0,0.00029312,7]
[422015768,1778470241000,-151.0,0.00029312,7]
[422015767,1778470241000,-151.0,0.00029312,7]
[422015773,1778470241000,-151.0,0.00029312,7]
[422015769,1778470241000,-185.889757,0.00029312,7]
[422015771,1778470241000,-185.889757,0.00029312,7]
[422015774,1778470241000,-151.0,0.00029312,7]
[422015772,1778470241000,-185.889757,0.00029312,7]
[422015770,1778470241000,-185.889757,0.00029312,7]
[422015776,1778470241000,-3984.56813658,0.000295,120]
[422015777,1778470241000,-504.0,0.0002957,7]
[422015762,1778470241000,-180.0902555,0.00028954,30]
[422015802,1778470241000,-500.0,0.00031256,60]
[422015796,1778470241000,-169.28371602,0.00030508,30]
[422015813,1778470241000,-200.0,0.000319,7]
[422015850,1778470241000,-250.0,0.00032253,2]
[422015842,1778470241000,-150.0,0.00032239,2]
[422015840,1778470241000,-150.0,0.00032239,2]
[422015844,1778470241000,-250.0,0.00032253,2]
[422015847,1778470241000,-250.0,0.00032253,2]
[422015848,1778470241000,-250.0,0.00032253,2]
[422015849,1778470241000,-250.0,0.00032253,2]
[422015843,1778470241000,-237.0,0.00032239,2]
[422015838,1778470241000,-204.8,0.0003221,5]
[422015839,1778470241000,-150.0,0.00032239,2]
[422015851,1778470241000,-250.0,0.00032253,2]
[422015853,1778470241000,-302.0,0.00032253,2]
[422015841,1778470241000,-150.0,0.00032239,2]
[422015859,1778470241000,-151.0,0.00032312,7]
[422015857,1778470241000,-393.0,0.00032308,2]
[422015856,1778470241000,-393.0,0.00032279,2]
[422015860,1778470241000,-151.0,0.00032312,7]
[422015861,1778470241000,-151.0,0.00032312,7]
[422015863,1778470241000,-151.0,0.00032312,7]
[422015862,1778470241000,-156.615285,0.00032312,7]
[422015864,1778470241000,-151.0,0.00032312,7]
[422015866,1778470241000,-393.0,0.00032334,2]
[422015868,1778470241000,-393.0,0.00032362,2]
[422015867,1778470241000,-393.0,0.00032339,2]
[422015812,1778470241000,-154.0,0.00031508,30]
[422015865,1778470241000,-393.0,0.00032325,2]
[422015858,1778470241000,-151.0,0.00032312,7]
[422015845,1778470241000,-250.0,0.00032253,2]
[422015855,1778470241000,-393.0,0.00032256,2]
[422015837,1778470241000,-393.0,0.00032203,2]
[422015805,1778470241000,-700.0,0.0003147,2]
[422015809,1778470241000,-153.0,0.00031504,30]
[422015846,1778470241000,-250.0,0.00032253,2]
[422015806,1778470241000,-1000.0,0.000315,7]
[422015814,1778470241000,-200.58612818,0.000319,7]
[422015818,1778470241000,-152.0,0.00031909,6]
[422015815,1778470241000,-200.0,0.000319,7]
[422015816,1778470241000,-200.0,0.000319,7]
[422015819,1778470241000,-13622.20743651,0.00031913,2]
[422015822,1778470241000,-500.0,0.00031965,45]
[422015817,1778470241000,-200.0,0.000319,7]
[422015820,1778470241000,-151.0,0.00031913,7]
[422015825,1778470241000,-718.2280704,0.00032,120]
[422015821,1778470241000,-506.71,0.00031965,45]
[422015835,1778470241000,-178.039379,0.00032078,7]
[422015831,1778470241000,-1000.0,0.00032078,60]
[422015823,1778470241000,-500.0,0.00031965,45]
[422015836,1778470241000,-504.0,0.00032156,10]
[422015834,1778470241000,-178.039379,0.00032078,7]
[422015828,1778470241000,-214.82098671,0.00032,7]
[422015833,1778470241000,-178.039379,0.00032078,7]
[422015827,1778470241000,-841.04,0.00032,120]
[422015832,1778470241000,-178.039379,0.00032078,7]
[422015826,1778470241000,-258.82889341,0.00032,120]
[422015830,1778470241000,-500.0,0.00032078,60]
[422015824,1778470241000,-500.0,0.00031965,45]
[422015829,1778470241000,-186.11807982,0.00032057,19]
[422015947,1778470242000,-185.889757,0.00032614,7]
[422015960,1778470242000,-393.0,0.00032626,2]
[422015956,1778470242000,-393.0,0.00032616,2]
[422015962,1778470242000,-393.0,0.00032633,2]
[422015945,1778470242000,-185.889757,0.00032614,7]
[422015928,1778470242000,-160.0,0.00032598,2]
[422015941,1778470242000,-151.0,0.00032614,7]
[422015949,1778470242000,-185.889757,0.00032614,7]
[422015952,1778470242000,-184.557432,0.00032614,7]
[422015934,1778470242000,-151.0,0.00032614,7]
[422015958,1778470242000,-393.0,0.00032621,2]
[422015936,1778470242000,-151.0,0.00032614,7]
[422015938,1778470242000,-151.0,0.00032614,7]
[422015967,1778470242000,-393.0,0.00032648,2]
[422016006,1778470242000,-393.0,0.00032727,2]
[422015970,1778470242000,-151.0,0.00032648,7]
[422015974,1778470242000,-393.0,0.00032663,2]
[422015976,1778470242000,-393.0,0.0003267,2]
[422015963,1778470242000,-393.0,0.00032639,2]
[422015978,1778470242000,-393.0,0.00032674,2]
[422015966,1778470242000,-393.0,0.00032643,2]
[422015980,1778470242000,-393.0,0.00032676,2]
[422015984,1778470242000,-393.0,0.00032678,2]
[422015982,1778470242000,-393.0,0.00032677,2]
[422015986,1778470242000,-486.94017322,0.00032684,2]
[422016026,1778470242000,-393.0,0.00032791,2]
[422016030,1778470242000,-393.0,0.00032794,2]
[422015930,1778470242000,-393.0,0.00032613,2]
[422015972,1778470242000,-151.0,0.00032648,7]
[422015926,1778470242000,-150.0,0.00032598,2]
[422015873,1778470242000,-393.0,0.00032416,2]
[422015932,1778470242000,-393.0,0.00032614,2]
[422016007,1778470242000,-393.0,0.00032731,2]
[422015871,1778470242000,-151.0,0.00032394,7]
[422015870,1778470242000,-393.0,0.00032394,2]
[422015869,1778470242000,-393.0,0.00032365,2]
[422015877,1778470242000,-393.0,0.00032439,2]
[422015875,1778470242000,-393.0,0.00032429,2]
[422015880,1778470242000,-393.0,0.00032443,2]
[422015882,1778470242000,-393.0,0.0003245,2]
[422015884,1778470242000,-587.0,0.00032504,30]
[422015898,1778470242000,-393.0,0.0003257,2]
[422015887,1778470242000,-154.0,0.00032504,30]
[422015896,1778470242000,-393.0,0.00032519,2]
[422015889,1778470242000,-261.0,0.00032504,30]
[422015886,1778470242000,-153.0,0.00032504,30]
[422015891,1778470242000,-152.0,0.00032508,30]
[422015894,1778470242000,-154.0,0.00032508,30]
[422015902,1778470242000,-5000.0,0.00032584,2]
[422015900,1778470242000,-296.778381,0.00032584,7]
[422015904,1778470242000,-150.0,0.00032586,2]
[422015908,1778470242000,-150.0,0.00032586,2]
[422015911,1778470242000,-150.0,0.00032586,2]
[422015924,1778470242000,-150.0,0.00032598,2]
[422015913,1778470242000,-150.0,0.00032586,2]
[422015906,1778470242000,-150.0,0.00032586,2]
[422015915,1778470242000,-293.0,0.00032586,2]
[422015917,1778470242000,-150.0,0.00032598,2]
[422015922,1778470242000,-150.0,0.00032598,2]
[422015919,1778470242000,-150.0,0.00032598,2]
[422015953,1778470242000,-151.0,0.00032614,7]
[422015943,1778470242000,-185.889757,0.00032614,7]
[422016000,1778470242000,-393.0,0.00032708,2]
[422016095,1778470242000,-393.0,0.00032884,2]
[422016028,1778470242000,-393.0,0.00032791,2]
[422016071,1778470242000,-393.0,0.00032871,2]
[422016069,1778470242000,-700.0,0.0003287,2]
[422016072,1778470242000,-393.0,0.00032874,2]
[422016074,1778470242000,-393.0,0.00032875,2]
[422016076,1778470242000,-151.0,0.00032877,7]
[422016062,1778470242000,-275.0,0.00032856,30]
[422016064,1778470242000,-260.0,0.00032856,30]
[422016061,1778470242000,-150.0,0.00032856,30]
[422016066,1778470242000,-209.0,0.00032856,30]
[422016080,1778470242000,-155.733885,0.00032877,7]
[422016078,1778470242000,-151.0,0.00032877,7]
[422016082,1778470242000,-151.0,0.00032877,7]
[422016089,1778470242000,-393.0,0.0003288,2]
[422016059,1778470242000,-150.0,0.00032856,30]
[422016085,1778470242000,-151.0,0.00032877,7]
[422016087,1778470242000,-418.72,0.00032877,7]
[422016099,1778470242000,-393.0,0.00032894,2]
[422016093,1778470242000,-393.0,0.00032882,2]
[422016091,1778470242000,-393.0,0.00032881,2]
[422015988,1778470242000,-393.0,0.00032688,2]
[422016097,1778470242000,-393.0,0.00032893,2]
[422016103,1778470242000,-1000.0,0.000329,60]
[422016105,1778470242000,-150.0,0.000329,10]
[422016107,1778470242000,-152.0,0.00032959,7]
[422016109,1778470242000,-718.2280704,0.00033,120]
[422016111,1778470242000,-258.82889341,0.00033,120]
[422016115,1778470242000,-150.0,0.00033,120]
[422016113,1778470242000,-297.953033,0.00033,14]
[422016084,1778470242000,-151.0,0.00032877,7]
[422016056,1778470242000,-177.0,0.00032856,30]
[422016101,1778470242000,-508.56426085,0.000329,60]
[422016046,1778470242000,-393.0,0.00032835,2]
[422016057,1778470242000,-227.0,0.00032856,30]
[422015990,1778470242000,-180.13254991,0.00032695,9]
[422015994,1778470242000,-393.0,0.00032701,2]
[422015998,1778470242000,-393.0,0.00032704,2]
[422016003,1778470242000,-393.0,0.00032715,2]
[422016013,1778470242000,-393.0,0.0003276,2]
[422016015,1778470242000,-393.0,0.00032765,2]
[422016023,1778470242000,-393.0,0.00032789,2]
[422016034,1778470242000,-393.0,0.00032803,2]
[422016036,1778470242000,-250.0,0.00032806,7]
[422016017,1778470242000,-393.0,0.00032766,2]
[422016009,1778470242000,-393.0,0.00032731,2]
[422016019,1778470242000,-393.0,0.00032786,2]
[422016032,1778470242000,-393.0,0.00032797,2]
[422016011,1778470242000,-393.0,0.00032739,2]
[422015992,1778470242000,-393.0,0.00032697,2]
[422016052,1778470242000,-285.28,0.00032856,30]
[422016021,1778470242000,-393.0,0.00032786,2]
[422016055,1778470242000,-150.0,0.00032856,30]
[422016053,1778470242000,-150.0,0.00032856,30]
[422016048,1778470242000,-393.0,0.00032837,2]
[422016051,1778470242000,-393.0,0.00032849,2]
[422016044,1778470242000,-393.0,0.00032833,2]
[422016042,1778470242000,-393.0,0.00032832,2]
[422016040,1778470242000,-393.0,0.00032825,2]
[422016038,1778470242000,-393.0,0.00032812,2]
[422016050,1778470242000,-393.0,0.00032847,2]
[422016001,1778470242000,-393.0,0.00032714,2]
[422015996,1778470242000,-393.0,0.00032702,2]
[422016054,1778470242000,-167.0,0.00032856,30]
[422016333,1778470243000,-150.0,0.00034858,7]
[422016315,1778470243000,-150.0,0.00034644,7]
[422016310,1778470243000,-150.0,0.00034644,7]
[422016300,1778470243000,-360.03,0.00034544,60]
[422016308,1778470243000,-150.0,0.00034644,7]
[422016302,1778470243000,-646.84,0.00034544,60]
[422016313,1778470243000,-150.0,0.00034644,7]
[422016296,1778470243000,-218.49,0.00034544,60]
[422016306,1778470243000,-150.0,0.00034644,7]
[422016286,1778470243000,-587.0,0.00034504,30]
[422016317,1778470243000,-150.0,0.00034644,7]
[422016304,1778470243000,-1000.0,0.00034544,60]
[422016294,1778470243000,-154.0,0.00034508,30]
[422016274,1778470243000,-300.0,0.00034504,5]
[422016288,1778470243000,-153.0,0.00034504,30]
[422016282,1778470243000,-300.0,0.00034504,5]
[422016267,1778470243000,-209.0,0.000339,120]
[422016290,1778470243000,-154.0,0.00034504,30]
[422016325,1778470243000,-178.039379,0.00034644,7]
[422016298,1778470243000,-186.68,0.00034544,60]
[422016321,1778470243000,-178.039379,0.00034644,7]
[422016363,1778470243000,-718.2280704,0.00035,120]
[422016337,1778470243000,-200.0,0.0003488,120]
[422016359,1778470243000,-500.0,0.00034999,120]
[422016357,1778470243000,-500.0,0.00034999,120]
[422016349,1778470243000,-663.9332681,0.000349,8]
[422016362,1778470243000,-41261.529194,0.00035,6]
[422016353,1778470243000,-317.68145778,0.00034999,10]
[422016366,1778470243000,-431.38148902,0.00035,120]
[422016355,1778470243000,-300.0,0.00034999,10]
[422016368,1778470243000,-258.82889341,0.00035,120]
[422016352,1778470243000,-150.0,0.00034965,7]
[422016329,1778470243000,-150.0,0.00034751,7]
[422016370,1778470243000,-15513.93643762,0.00035,60]
[422016345,1778470243000,-161.0,0.0003488,120]
[422016343,1778470243000,-250.0,0.0003488,120]
[422016335,1778470243000,-524.58095825,0.0003488,120]
[422016327,1778470243000,-504.0,0.00034742,12]
[422016323,1778470243000,-178.039379,0.00034644,7]
[422016319,1778470243000,-178.039379,0.00034644,7]
[422016339,1778470243000,-259.0,0.0003488,120]
[422016341,1778470243000,-250.0,0.0003488,120]
[422016331,1778470243000,-151.0,0.00034815,7]
[422016347,1778470243000,-3969.87916059,0.000349,2]
[422016284,1778470243000,-152.568121,0.00034504,7]
[422016292,1778470243000,-152.0,0.00034508,30]
[422016276,1778470243000,-300.0,0.00034504,5]
[422016165,1778470243000,-185.889757,0.00033722,7]
[422016168,1778470243000,-185.889757,0.00033722,7]
[422016187,1778470243000,-151.0,0.00033722,3]
[422016170,1778470243000,-185.889757,0.00033722,7]
[422016181,1778470243000,-151.0,0.00033722,7]
[422016183,1778470243000,-151.0,0.00033722,7]
[422016172,1778470243000,-208.908557,0.00033722,7]
[422016163,1778470243000,-185.889757,0.00033722,7]
[422016174,1778470243000,-151.0,0.00033722,7]
[422016176,1778470243000,-151.0,0.00033722,7]
[422016178,1778470243000,-151.0,0.00033722,7]
[422016185,1778470243000,-151.0,0.00033722,3]
[422016193,1778470243000,-151.0,0.00033722,3]
[422016189,1778470243000,-151.0,0.00033722,3]
[422016200,1778470243000,-151.0,0.00033811,7]
[422016160,1778470243000,-151.0,0.00033722,7]
[422016161,1778470243000,-185.389633,0.00033722,7]
[422016158,1778470243000,-151.0,0.00033722,7]
[422016149,1778470243000,-500.0,0.00033722,60]
[422016271,1778470243000,-152.0,0.00034049,7]
[422016129,1778470243000,-587.0,0.00033504,30]
[422016117,1778470243000,-1001.38,0.00033,120]
[422016120,1778470243000,-475.48,0.00033007,10]
[422016131,1778470243000,-153.0,0.00033504,30]
[422016122,1778470243000,-290.73,0.00033166,2]
[422016125,1778470243000,-504.0,0.00033449,11]
[422016195,1778470243000,-294.644554,0.00033722,3]
[422016127,1778470243000,-490.93997533,0.000335,2]
[422016133,1778470243000,-154.0,0.00033504,30]
[422016139,1778470243000,-252.51889735,0.00033612,55]
[422016146,1778470243000,-1000.0,0.00033722,60]
[422016144,1778470243000,-246.0,0.00033722,60]
[422016141,1778470243000,-150.0,0.00033722,60]
[422016137,1778470243000,-154.0,0.00033508,30]
[422016155,1778470243000,-151.0,0.00033722,7]
[422016135,1778470243000,-152.0,0.00033508,30]
[422016197,1778470243000,-569.07194598,0.00033736,2]
[422016191,1778470243000,-151.0,0.00033722,3]
[422016204,1778470243000,-718.2280704,0.000339,120]
[422016202,1778470243000,-151.0,0.00033811,7]
[422016242,1778470243000,-183.0,0.000339,120]
[422016255,1778470243000,-162.0,0.000339,120]
[422016253,1778470243000,-193.0,0.000339,120]
[422016249,1778470243000,-240.0,0.000339,120]
[422016243,1778470243000,-150.0,0.000339,120]
[422016251,1778470243000,-241.0,0.000339,120]
[422016265,1778470243000,-150.0,0.000339,120]
[422016263,1778470243000,-295.0,0.000339,120]
[422016259,1778470243000,-163.0,0.000339,120]
[422016261,1778470243000,-200.0,0.000339,120]
[422016247,1778470243000,-243.0,0.000339,120]
[422016278,1778470243000,-300.0,0.00034504,5]
[422016273,1778470243000,-204.8,0.00034182,7]
[422016280,1778470243000,-300.0,0.00034504,5]
[422016269,1778470243000,-2151.91130019,0.00034026,2]
[422016257,1778470243000,-203.0,0.000339,120]
[422016245,1778470243000,-266.0,0.000339,120]
[422016240,1778470243000,-153.0,0.000339,120]
[422016238,1778470243000,-150.0,0.000339,120]
[422016206,1778470243000,-258.82889341,0.000339,120]
[422016208,1778470243000,-300.0,0.000339,120]
[422016210,1778470243000,-300.0,0.000339,120]
[422016213,1778470243000,-211.0,0.000339,120]
[422016236,1778470243000,-225.0,0.000339,120]
[422016217,1778470243000,-200.0,0.000339,120]
[422016223,1778470243000,-399.0,0.000339,120]
[422016215,1778470243000,-200.0,0.000339,120]
[422016225,1778470243000,-200.0,0.000339,120]
[422016228,1778470243000,-150.0,0.000339,120]
[422016226,1778470243000,-268.0,0.000339,120]
[422016221,1778470243000,-250.0,0.000339,120]
[422016232,1778470243000,-228.0,0.000339,120]
[422016234,1778470243000,-150.0,0.000339,120]
[422016230,1778470243000,-229.0,0.000339,120]
[422016219,1778470243000,-185.0,0.000339,120]
[422016546,1778470245000,-682.2299972,0.00035,60]
[422016537,1778470245000,-56.77427722,0.00035,60]
[422016542,1778470245000,-342.108,0.00025235,10]
[422016545,1778470245000,-584.892,0.00025235,10]
[422016548,1778470245000,-1000.32641018,0.00035,60]
[422016550,1778470245000,-6110.5062446,0.00035,60]
[422016539,1778470245000,-7805.0,0.00035,60]
[422016554,1778470245000,-366.46869144,0.00035,60]
[422016552,1778470245000,-969.32834735,0.00035,60]
[422016558,1778470245000,-1283.28412701,0.00035,60]
[422016556,1778470245000,-5467.5606964,0.00035,60]
[422016562,1778470245000,-661.20576,0.00035,60]
[422016560,1778470245000,-5179.20770353,0.00035,60]
[422016575,1778470245000,-1048.0,0.00026158,2]
[422016592,1778470246000,-693.0,0.00035,60]
[422016589,1778470246000,-603.0,0.00035,60]
[422016584,1778470246000,-2438.58,0.00030127,10]
[422016587,1778470246000,-1521.00320952,0.00035,60]
[422016585,1778470246000,-1113.0,0.00032849,30]
[422016595,1778470246000,-351.012724,0.00035,60]
[422016600,1778470246000,-17326.69694417,0.00035,60]
[422016578,1778470246000,-979.16666667,0.00026158,2]
[422016580,1778470246000,-381.56,0.00026158,2]
[422016582,1778470246000,-5727.41679048,0.00026158,2]
[422016597,1778470246000,-1409.45842976,0.00035,60]
[422016624,1778470246000,-191.90607534,0.0003065,2]
[422016603,1778470246000,-4466.70186583,0.00035,120]
[422016606,1778470246000,-4324.05845683,0.00035,120]
[422016619,1778470246000,-150.0,0.00026849,2]
[422016617,1778470246000,-3527.862,0.00024943,2]
[422016627,1778470246000,-11960.83192466,0.00035,120]
[422016620,1778470246000,-150.0,0.00028192,2]
[422016623,1778470246000,-150.0,0.00029601,2]
[422016650,1778470246000,-3004.53071096,0.00035,120]
[422016656,1778470246000,-400.40357056,0.00035,120]
[422016664,1778470246000,-301.73223326,0.00035,120]
[422016672,1778470246000,-1531.08222392,0.00035,120]
[422016601,1778470246000,-150.0,0.00035,120]
[422017466,1778470261000,2500.0,0.00025942,120]
[422017467,1778470261000,2500.0,0.00027226,120]
[422017468,1778470261000,1517.96960732,0.00027226,120]
[422017471,1778471002000,11085.25846252,0.00027296,120]
[422017474,1778471253000,-250.0,0.00014,2]
[422017475,1778471253000,-60.1724441,0.00016715,2]
[422017473,1778471253000,-178.96,0.00013477,2]
[422017518,1778471432000,-428.0,0.00023,2]
[422017517,1778471432000,-161.0,0.00023,2]
[422017514,1778471432000,-154.3,0.0002244,2]
[422017512,1778471432000,-428.0,0.00022,2]
[422017508,1778471432000,-428.0,0.00021,2]
[422017511,1778471432000,-161.0,0.00022,2]
[422017516,1778471432000,-166.66,0.00022728,30]
[422017510,1778471432000,-162.0,0.00022,2]
[422017520,1778471432000,-300.0,0.00023687,2]
[422017509,1778471432000,-214.82098671,0.00021431,2]
[422017519,1778471432000,-166.66,0.00023326,30]
[422017524,1778471432000,-200.0,0.00023718,2]
[422017526,1778471432000,-150.0,0.00023758,2]
[422017507,1778471432000,-161.0,0.00021,2]
[422017528,1778471432000,-2500.0,0.00023785,2]
[422017548,1778471432000,-151.0,0.00023905,2]
[422017540,1778471432000,-151.0,0.00023905,2]
[422017536,1778471432000,-154.3,0.00023905,2]
[422017532,1778471432000,-200.0,0.00023832,2]
[422017543,1778471432000,-151.0,0.00023905,2]
[422017534,1778471432000,-719.52,0.00023889,2]
[422017538,1778471432000,-531.41582422,0.00023905,2]
[422017530,1778471432000,-947.83,0.00023811,2]
[422017546,1778471432000,-151.0,0.00023905,2]
[422017522,1778471432000,-9335.39,0.00023688,2]
[422017505,1778471432000,-154.3,0.00020976,2]
[422017487,1778471432000,-1000.0,0.0001512,2]
[422017502,1778471432000,-161.0,0.0002,2]
[422017552,1778471432000,-151.0,0.00023905,2]
[422017481,1778471432000,-154.3,0.0001512,2]
[422017480,1778471432000,-154.3,0.00013655,2]
[422017479,1778471432000,-154.3,0.00012191,2]